bitfinex/quotes_BTCUSD_20220205
["timestamp","ask_amount","ask_price","bid_price","bid_amount"]
[1644028641107,0.18873465,41408.0,41405.0,0.018]
[1644028641608,0.18873465,41408.0,41405.0,0.01820158]
[1644028642408,0.18873465,41408.0,41404.0,0.00084072]
[1644028643409,0.18873465,41408.0,41403.0,0.00020158]
[1644028643610,0.00415928,41405.0,41402.0,0.0460423]
[1644028644455,0.00415928,41405.0,41403.0,0.018]
[1644028646058,0.00415928,41405.0,41402.0,0.00020158]
[1644028646255,0.00415928,41405.0,41401.0,0.02]
[1644028647257,0.00415928,41405.0,41401.0,0.02084076]
[1644028647460,0.06644705,41402.0,41401.0,0.02084076]
[1644028647658,0.06644705,41402.0,41401.0,0.02104234]
[1644028647860,0.06644705,41402.0,41401.0,0.02084076]
[1644028648096,0.04744705,41402.0,41401.0,0.02084076]
[1644028648299,0.04744705,41402.0,41401.0,0.02]
[1644028648699,0.04833673,41402.0,41401.0,0.02]
[1644028651204,0.04744705,41402.0,41401.0,0.02]
[1644028652449,0.04833673,41402.0,41401.0,0.02]
[1644028654052,0.03133673,41402.0,41401.0,0.02]
[1644028655152,0.00088968,41402.0,41401.0,0.02]
[1644028655997,0.26570216,41405.0,41402.0,0.01711032]
[1644028656402,0.26570216,41405.0,41402.0,0.01731529]
[1644028657397,0.07340871,41404.0,41402.0,0.01731529]
[1644028657599,0.07340871,41404.0,41402.0,0.01711032]
[1644028657800,0.07340871,41404.0,41401.0,0.02020497]
[1644028658000,0.07340871,41404.0,41401.0,0.02079353]
[1644028659101,0.07340871,41404.0,41401.0,0.07]
[1644028659546,0.07340871,41404.0,41401.0,0.07020497]
[1644028660145,0.07340871,41404.0,41401.0,0.08920497]
[1644028660546,0.07340871,41404.0,41401.0,0.089]
[1644028660747,0.07340871,41404.0,41401.0,0.08920497]
[1644028661747,0.07340871,41404.0,41401.0,0.149377]
[1644028661946,0.07340871,41404.0,41401.0,0.13058197]
[1644028662948,0.07340871,41404.0,41401.0,0.130377]
[1644028663197,0.07340871,41404.0,41401.0,0.13058197]
[1644028663597,0.07340871,41404.0,41401.0,0.07020497]
[1644028663996,0.07340871,41404.0,41402.0,0.017]
[1644028665398,0.07340871,41404.0,41401.0,0.07099852]
[1644028665597,0.18863815,41408.0,41401.0,0.07099852]
[1644028666197,0.18863815,41408.0,41401.0,0.07020497]
[1644028666398,0.18863815,41408.0,41402.0,0.00079354]
[1644028666399,0.47838898,41408.0,41402.0,0.00079354]
[1644028666596,0.19690019,41403.0,41402.0,0.00079354]
[1644028666859,0.27015433,41403.0,41402.0,0.00079354]
[1644028667451,0.27015433,41403.0,41401.0,0.07020497]
[1644028667652,0.27015433,41403.0,41401.0,0.087]
[1644028668052,0.18863815,41408.0,41401.0,0.087]
[1644028668253,0.331231,41407.0,41401.0,0.08720497]
[1644028668854,0.331231,41407.0,41402.0,0.00079353]
[1644028669054,0.331231,41407.0,41402.0,0.0009985]
[1644028669254,0.3272855,41403.0,41402.0,0.0009985]
[1644028669461,0.3272855,41403.0,41402.0,0.00079353]
[1644028669858,0.331231,41402.0,41401.0,0.02020497]
[1644028670156,0.331231,41402.0,41401.0,0.02]
[1644028673697,0.3272855,41403.0,41401.0,0.02]
[1644028674745,0.331231,41407.0,41401.0,0.02]
[1644028675145,0.331231,41407.0,41401.0,0.02020497]
[1644028675745,0.26363609,41406.0,41401.0,0.02020497]
[1644028675947,0.41074814,41405.0,41401.0,0.02020497]
[1644028676146,0.41074814,41405.0,41402.0,0.00084029]
[1644028676345,0.41074814,41405.0,41402.0,0.00104526]
[1644028677250,0.41074814,41405.0,41402.0,0.00020497]
[1644028677548,0.07945339,41405.0,41401.0,0.02104527]
[1644028677948,0.26363609,41406.0,41401.0,0.0208403]
[1644028678397,0.26363609,41406.0,41401.0,0.02]
[1644028678599,0.26363609,41406.0,41401.0,0.0208403]
[1644028678997,0.331231,41405.0,41401.0,0.0208403]
[1644028679606,0.06432393,41402.0,41401.0,0.02020497]
[1644028679806,0.06432393,41402.0,41401.0,0.0208403]
[1644028680800,0.06432393,41402.0,41401.0,0.02]
[1644028681401,0.331231,41405.0,41401.0,0.02]
[1644028681604,0.331231,41405.0,41401.0,0.02020497]
[1644028682051,0.331231,41405.0,41401.0,0.02104527]
[1644028682556,0.0806524,41402.0,41401.0,0.02104527]
[1644028682754,0.0806524,41402.0,41401.0,0.0208403]
[1644028683152,0.331231,41405.0,41401.0,0.02]
[1644028683353,0.26363609,41406.0,41401.0,0.02]
[1644028683552,0.331231,41405.0,41401.0,0.02]
[1644028684457,0.331231,41405.0,41401.0,0.0208403]
[1644028685601,0.07409141,41404.0,41401.0,0.02]
[1644028687202,0.07409141,41404.0,41401.0,0.02020497]
[1644028687802,0.331231,41403.0,41401.0,0.02020497]
[1644028688005,0.07409141,41404.0,41401.0,0.02]
[1644028688303,0.07409141,41404.0,41401.0,0.02020497]
[1644028695808,0.07409141,41404.0,41401.0,0.02]
[1644028697750,0.26363609,41406.0,41401.0,0.02]
[1644028697955,0.331231,41405.0,41402.0,0.060378]
[1644028699151,0.33115131,41405.0,41402.0,0.060378]
[1644028700799,0.33015131,41405.0,41402.0,0.060378]
[1644028701699,0.26363609,41406.0,41401.0,0.03584067]
[1644028702400,0.26363609,41406.0,41401.0,0.035]
[1644028702600,0.26363609,41406.0,41401.0,0.03584067]
[1644028702800,0.26363609,41406.0,41401.0,0.02084067]
[1644028703401,0.26363609,41406.0,41402.0,0.060378]
[1644028704858,0.26363609,41406.0,41402.0,0.06121866]
[1644028705862,0.26363609,41406.0,41402.0,0.060378]
[1644028706057,0.26363609,41406.0,41402.0,0.06121866]
[1644028706461,0.26363609,41406.0,41403.0,0.05]
[1644028706661,0.18863815,41408.0,41403.0,0.05]
[1644028706860,0.331234,41407.0,41403.0,0.05]
[1644028708599,0.18863815,41408.0,41404.0,0.060374]
[1644028708799,0.331234,41407.0,41404.0,0.060374]
[1644028708999,0.331234,41407.0,41402.0,0.00084067]
[1644028709199,0.331234,41407.0,41404.0,0.05]
[1644028710400,0.51375442,41407.0,41404.0,0.05]
[1644028711201,0.51375442,41407.0,41402.0,0.00084067]
[1644028711858,0.51375442,41407.0,41401.0,0.02]
[1644028712052,0.51375442,41407.0,41402.0,0.00084067]
[1644028713154,0.51375442,41407.0,41401.0,0.080378]
[1644028713354,0.51375442,41407.0,41402.0,0.00084067]
[1644028714354,0.51375442,41407.0,41402.0,0.013]
[1644028714555,0.51375442,41407.0,41402.0,0.01384067]
[1644028715256,0.57413442,41407.0,41402.0,0.01384067]
[1644028715457,0.57413442,41407.0,41402.0,0.013]
[1644028715705,0.51375442,41407.0,41402.0,0.01384067]
[1644028716104,0.51375442,41407.0,41402.0,0.00084067]
[1644028716802,0.57413242,41407.0,41401.0,0.02]
[1644028717003,0.57413242,41407.0,41402.0,0.00084067]
[1644028717901,0.57413242,41407.0,41401.0,0.02]
[1644028718102,0.57413242,41407.0,41402.0,0.00084067]
[1644028718905,0.57413242,41407.0,41402.0,0.01484067]
[1644028719105,0.57413242,41407.0,41402.0,0.014]
[1644028719360,0.57413242,41407.0,41402.0,0.01484067]
[1644028720056,0.51375442,41407.0,41402.0,0.07521867]
[1644028720256,0.51375442,41407.0,41402.0,0.074378]
[1644028720459,0.51375442,41407.0,41402.0,0.07521867]
[1644028720859,0.51375442,41407.0,41402.0,0.06121867]
[1644028721263,0.06309588,41403.0,41402.0,0.06121867]
[1644028721461,0.331234,41406.0,41402.0,0.06121867]
[1644028721660,0.331234,41406.0,41402.0,0.060378]
[1644028722260,0.3311271,41406.0,41402.0,0.060378]
[1644028722460,0.41927201,41406.0,41402.0,0.060378]
[1644028722862,0.41927201,41406.0,41402.0,0.06121866]
[1644028723098,0.41927201,41406.0,41402.0,0.07521866]
[1644028723399,0.41927201,41406.0,41402.0,0.01484066]
[1644028723999,0.41927201,41406.0,41402.0,0.014]
[1644028724198,0.41927201,41406.0,41402.0,0.01484066]
[1644028724602,0.41927201,41406.0,41402.0,0.00084066]
[1644028725199,0.41927201,41406.0,41401.0,0.02]
[1644028725399,0.41927201,41406.0,41402.0,0.00084066]
[1644028726306,0.41927201,41406.0,41401.0,0.02]
[1644028726503,0.41927201,41406.0,41402.0,0.00084066]
[1644028727456,0.41927201,41406.0,41402.0,0.060379]
[1644028727658,0.41927201,41406.0,41402.0,0.06121966]
[1644028728659,0.41927201,41406.0,41402.0,0.060379]
[1644028728861,0.41927201,41406.0,41402.0,0.06121966]
[1644028729958,0.41927201,41406.0,41401.0,0.02]
[1644028730160,0.41927201,41406.0,41402.0,0.00084066]
[1644028731199,0.41927201,41406.0,41401.0,0.035]
[1644028731404,0.41927201,41406.0,41402.0,0.00084066]
[1644028732199,0.47965401,41406.0,41402.0,0.00084066]
[1644028732399,0.331234,41405.0,41401.0,0.035]
[1644028732600,0.331234,41405.0,41402.0,0.00084066]
[1644028733601,0.331234,41405.0,41401.0,0.035]
[1644028733802,0.060384,41405.0,41401.0,0.03584067]
[1644028734654,0.060384,41405.0,41401.0,0.02]
[1644028734852,0.060384,41405.0,41401.0,0.02084067]
[1644028735854,0.060384,41405.0,41401.0,0.02]
[1644028736055,0.060384,41405.0,41401.0,0.02084067]
[1644028736857,0.060384,41405.0,41401.0,0.03384067]
[1644028737058,0.060384,41405.0,41401.0,0.033]
[1644028737459,0.060384,41405.0,41401.0,0.03384067]
[1644028738300,0.060384,41405.0,41401.0,0.033]
[1644028738501,0.060384,41405.0,41401.0,0.03384067]
[1644028738904,0.331233,41405.0,41401.0,0.02084067]
[1644028739310,0.331233,41405.0,41402.0,0.060378]
[1644028739506,0.08814491,41406.0,41402.0,0.060378]
[1644028739908,0.331233,41405.0,41402.0,0.060378]
[1644028742956,0.08814491,41406.0,41402.0,0.060378]
[1644028744463,0.08814491,41406.0,41402.0,0.06121866]
[1644028744658,0.331233,41405.0,41402.0,0.06121866]
[1644028745258,0.331233,41405.0,41402.0,0.07521866]
[1644028745459,0.331233,41405.0,41402.0,0.074378]
[1644028746703,0.331233,41405.0,41402.0,0.060378]
[1644028747107,0.33114275,41405.0,41402.0,0.060378]
[1644028747304,0.08814491,41406.0,41402.0,0.060378]
[1644028747802,0.331234,41405.0,41402.0,0.060378]
[1644028748202,0.331234,41405.0,41402.0,0.06121866]
[1644028749203,0.331234,41405.0,41402.0,0.074378]
[1644028750852,0.08814491,41406.0,41402.0,0.074378]
[1644028751254,0.331234,41405.0,41403.0,0.05]
[1644028751650,0.331234,41405.0,41403.0,0.110377]
[1644028752754,0.331234,41405.0,41403.0,0.060377]
[1644028752954,0.331234,41405.0,41403.0,0.110377]
[1644028753200,0.331234,41405.0,41403.0,0.060377]
[1644028753400,0.331234,41405.0,41403.0,0.110377]
[1644028756201,0.331234,41405.0,41403.0,0.05]
[1644028757561,0.331234,41405.0,41403.0,0.110376]
[1644028757955,0.331234,41407.0,41403.0,0.110376]
[1644028758956,0.49737239,41407.0,41403.0,0.110376]
[1644028759156,0.28019077,41406.0,41403.0,0.060376]
[1644028759358,0.331234,41405.0,41403.0,0.060376]
[1644028759758,0.28019077,41406.0,41404.0,0.05]
[1644028759958,0.28019077,41406.0,41403.0,0.060376]
[1644028760163,0.28019077,41406.0,41404.0,0.05]
[1644028760361,0.31736065,41409.0,41404.0,0.05]
[1644028760600,0.331234,41408.0,41404.0,0.05]
[1644028760801,0.52395409,41408.0,41404.0,0.05]
[1644028761201,0.52395409,41408.0,41403.0,0.060376]
[1644028761402,0.07623638,41406.0,41403.0,0.060376]
[1644028761703,0.331234,41405.0,41402.0,0.00084068]
[1644028761902,0.6008251,41405.0,41402.0,0.00084068]
[1644028762304,0.13661738,41406.0,41401.0,0.02]
[1644028762509,0.16588727,41407.0,41404.0,0.05]
[1644028762713,0.16588727,41407.0,41406.0,0.05]
[1644028762906,0.00034773,41413.0,41406.0,0.0985]
[1644028763107,0.00034773,41416.0,41412.0,0.05]
[1644028763306,0.22118835,41417.0,41415.0,0.05]
[1644028763514,0.0003477,41416.0,41415.0,0.11034999]
[1644028763709,0.0003477,41419.0,41415.0,0.11034999]
[1644028763907,0.25340999,41421.0,41418.0,0.110352]
[1644028763908,0.0003477,41420.0,41418.0,0.110352]
[1644028764106,0.25340999,41421.0,41415.0,0.18105199]
[1644028764107,0.25375769,41421.0,41415.0,0.18105199]
[1644028764369,0.0003477,41420.0,41415.0,0.18105199]
[1644028764663,0.47125193,41421.0,41415.0,0.18105199]
[1644028764864,0.0003477,41420.0,41415.0,0.18105199]
[1644028765063,0.07040238,41420.0,41415.0,0.120702]
[1644028765269,0.07075008,41420.0,41418.0,0.060352]
[1644028765464,0.07040238,41420.0,41418.0,0.060352]
[1644028766065,0.26599951,41420.0,41418.0,0.060352]
[1644028766368,0.05,41419.0,41413.0,0.0208014]
[1644028766565,0.05,41416.0,41413.0,0.0208014]
[1644028767266,0.0003477,41417.0,41413.0,0.0208014]
[1644028767466,0.0003477,41418.0,41414.0,0.06036]
[1644028767664,0.0003477,41419.0,41414.0,0.06036]
[1644028767870,0.24594483,41420.0,41414.0,0.06036]
[1644028768905,0.32932494,41420.0,41414.0,0.06036]
[1644028769304,0.32932494,41420.0,41414.0,0.12071231]
[1644028769510,0.32932494,41420.0,41414.0,0.06036]
[1644028769907,0.13372781,41420.0,41414.0,0.06036]
[1644028770904,0.0003477,41420.0,41414.0,0.06036]
[1644028771107,0.25340999,41421.0,41414.0,0.06036]
[1644028771305,0.0003477,41420.0,41414.0,0.06036]
[1644028771507,0.25340999,41421.0,41414.0,0.06036]
[1644028771707,0.05,41420.0,41414.0,0.06036]
[1644028771954,0.15786753,41419.0,41414.0,0.06036]
[1644028772455,0.0003477,41419.0,41414.0,0.06036]
[1644028772655,0.0503477,41420.0,41414.0,0.06036]
[1644028772956,0.05,41415.0,41410.0,0.01819907]
[1644028773159,0.05,41412.0,41410.0,0.01819907]
[1644028774054,0.0883607,41411.0,41410.0,0.01819907]
[1644028774456,0.0883607,41411.0,41406.0,0.060369]
[1644028774657,0.23502496,41408.0,41406.0,0.060369]
[1644028776111,0.0883607,41411.0,41406.0,0.060369]
[1644028777510,0.05,41412.0,41406.0,0.060369]
[1644028777712,0.0003477,41413.0,41406.0,0.060369]
[1644028777916,0.05,41415.0,41406.0,0.060369]
[1644028778114,0.0003477,41414.0,41406.0,0.060369]
[1644028778420,0.05,41416.0,41406.0,0.060369]
[1644028778614,0.0003477,41414.0,41406.0,0.060369]
[1644028778813,0.22400293,41414.0,41412.0,0.16458667]
[1644028779016,0.22400293,41414.0,41413.0,0.060356]
[1644028780356,0.0003477,41418.0,41413.0,0.360356]
[1644028780556,0.0003477,41419.0,41413.0,0.360356]
[1644028780756,0.00371199,41422.0,41413.0,0.060356]
[1644028780961,0.00336429,41422.0,41413.0,0.060356]
[1644028781157,0.00371199,41422.0,41413.0,0.060356]
[1644028781356,0.19471836,41421.0,41413.0,0.060356]
[1644028781559,0.19506606,41421.0,41413.0,0.060356]
[1644028781957,0.0003477,41421.0,41413.0,0.060356]
[1644028782159,0.265113,41422.0,41416.0,0.06035]
[1644028782357,0.0003477,41421.0,41417.0,0.12069853]
[1644028782557,0.2647653,41422.0,41417.0,0.12069853]
[1644028782558,0.265113,41422.0,41417.0,0.12069853]
[1644028782758,0.252113,41422.0,41417.0,0.12069853]
[1644028782960,0.252113,41422.0,41419.0,0.18033303]
[1644028783219,0.33867946,41422.0,41419.0,0.18033303]
[1644028783624,0.33867946,41422.0,41417.0,0.06034853]
[1644028784021,0.32867946,41422.0,41417.0,0.06034853]
[1644028784523,0.32867946,41422.0,41420.0,0.060349]
[1644028784722,0.242113,41422.0,41420.0,0.24936441]
[1644028784923,0.230113,41422.0,41420.0,0.24936441]
[1644028788059,0.05,41423.0,41420.0,0.24936441]
[1644028788665,0.0508429,41425.0,41420.0,0.24936441]
[1644028788861,0.05,41425.0,41420.0,0.24936441]
[1644028789063,0.24605468,41423.0,41420.0,0.24936441]
[1644028789862,0.24605468,41423.0,41415.0,0.120699]
[1644028790062,0.05,41422.0,41418.0,0.060352]
[1644028790607,0.037,41422.0,41421.0,0.013]
[1644028791209,0.24605468,41423.0,41421.0,0.013]
[1644028792105,0.24605468,41423.0,41422.0,0.17166992]
[1644028793105,0.24605468,41423.0,41421.0,0.073348]
[1644028794106,0.24605468,41423.0,41422.0,0.013]
[1644028794358,0.24605468,41423.0,41418.0,0.120692]
[1644028794359,0.29605468,41423.0,41418.0,0.120692]
[1644028795555,0.29605468,41423.0,41418.0,0.2836664]
[1644028796857,0.28405468,41423.0,41418.0,0.1629744]
[1644028798203,0.28405468,41423.0,41415.0,0.14142684]
[1644028798404,0.08925786,41418.0,41417.0,0.060353]
[1644028798605,0.037,41423.0,41417.0,0.073353]
[1644028798806,0.037,41423.0,41422.0,0.013]
[1644028799205,0.037,41423.0,41417.0,0.060353]
[1644028799406,0.037,41423.0,41422.0,0.013]
[1644028799611,0.31514324,41423.0,41422.0,0.013]
[1644028800408,0.31514324,41423.0,41419.0,0.16379184]
[1644028800608,0.23637642,41423.0,41419.0,0.16379184]
[1644028800809,0.23637642,41423.0,41420.0,0.060351]
[1644028801208,0.23637642,41423.0,41421.0,0.013]
[1644028801408,0.23637642,41423.0,41419.0,0.16379184]
[1644028801612,0.23672402,41423.0,41421.0,0.013]
[1644028801861,0.23637642,41423.0,41421.0,0.013]
[1644028802254,0.08552158,41422.0,41417.0,0.01889591]
[1644028802458,0.037,41418.0,41412.0,0.120712]
[1644028802856,0.037,41418.0,41415.0,0.013]
[1644028803456,0.23721317,41416.0,41415.0,0.013]
[1644028803857,0.23721317,41416.0,41412.0,0.133712]
[1644028804061,0.037,41414.0,41409.0,0.12072]
[1644028804263,0.0806977,41415.0,41410.0,0.01864127]
[1644028804457,0.037,41412.0,41410.0,0.01864127]
[1644028806508,0.037,41412.0,41408.0,0.073368]
[1644028807310,0.24736129,41409.0,41408.0,0.073368]
[1644028807509,0.24736129,41409.0,41408.0,0.013]
[1644028807510,0.28436129,41409.0,41408.0,0.013]
[1644028808209,0.28436129,41409.0,41407.0,0.18672555]
[1644028810455,0.27136129,41409.0,41407.0,0.18672555]
[1644028812061,0.27136129,41409.0,41408.0,0.013]
[1644028812457,0.25636129,41409.0,41407.0,0.18672555]
[1644028814307,0.24436129,41409.0,41407.0,0.18672555]
[1644028815109,0.24436129,41409.0,41406.0,0.060371]
[1644028815309,0.08811493,41408.0,41406.0,0.060371]
[1644028815711,0.08811493,41408.0,41406.0,0.050371]
[1644028816112,0.07511493,41408.0,41406.0,0.050371]
[1644028816864,0.24436129,41409.0,41406.0,0.050371]
[1644028818556,0.23036129,41409.0,41406.0,0.050371]
[1644028825261,0.22936129,41409.0,41406.0,0.050371]
[1644028825463,0.037,41409.0,41406.0,0.050371]
[1644028826762,0.037,41409.0,41406.0,0.171082]
[1644028826960,0.037,41409.0,41407.0,0.120722]
[1644028829010,0.0015,41413.0,41407.0,0.120722]
[1644028829214,0.0015,41413.0,41412.0,0.013]
[1644028829916,0.0015,41413.0,41412.0,0.0615]
[1644028830311,0.0001,41413.0,41412.0,0.0615]
[1644028830513,0.02753521,41424.0,41420.0,0.37370371]
[1644028830713,0.02833203,41425.0,41421.0,0.02246479]
[1644028831013,0.00034765,41424.0,41420.0,0.02246479]
[1644028831214,0.02753521,41425.0,41420.0,0.02246479]
[1644028831413,0.02753521,41422.0,41420.0,0.02246479]
[1644028831866,0.02753521,41422.0,41421.0,0.060343]
[1644028832065,0.09249052,41422.0,41414.0,0.12246479]
[1644028832264,0.06495531,41422.0,41414.0,0.12246479]
[1644028832561,0.06495531,41422.0,41415.0,0.01844268]
[1644028832562,0.02753521,41419.0,41415.0,0.01844268]
[1644028832961,0.02753521,41419.0,41417.0,0.060354]
[1644028833162,0.25563203,41419.0,41415.0,0.22388922]
[1644028833362,0.02753521,41418.0,41415.0,0.01844268]
[1644028833563,0.02753521,41418.0,41416.0,0.00048461]
[1644028834461,0.02753521,41418.0,41416.0,0.06084061]
[1644028834663,0.02753521,41418.0,41412.0,0.1982374]
[1644028834864,0.02788283,41418.0,41415.0,0.0008178]
[1644028835065,0.02753521,41418.0,41415.0,0.0008178]
[1644028835711,0.02753521,41418.0,41415.0,0.060357]
[1644028839558,0.02204866,41418.0,41415.0,0.060357]
[1644028839760,0.02204866,41416.0,41415.0,0.060357]
[1644028840361,0.02204866,41416.0,41415.0,0.12070787]
[1644028841261,0.01004866,41417.0,41415.0,0.12070787]
[1644028841462,0.01004866,41417.0,41415.0,0.060357]
[1644028841662,0.01004866,41417.0,41413.0,0.00079194]
[1644028841863,0.01004866,41417.0,41410.0,0.43259872]
[1644028842061,0.01004866,41415.0,41414.0,0.00079194]
[1644028843113,0.00034762,41418.0,41417.0,0.06330534]
[1644028843412,0.22809682,41419.0,41417.0,0.06330534]
[1644028844110,0.22809682,41419.0,41417.0,0.060354]
[1644028844409,0.22309682,41419.0,41417.0,0.060354]
[1644028847169,0.22309682,41419.0,41416.0,0.00079249]
[1644028847769,0.22309682,41419.0,41415.0,0.060357]
[1644028847969,0.22309682,41419.0,41415.0,0.0611495]
[1644028848973,0.22309682,41419.0,41415.0,0.060357]
[1644028849172,0.0485,41418.0,41415.0,0.0007925]
[1644028849373,0.331234,41417.0,41415.0,0.0007925]
[1644028849573,0.379734,41417.0,41415.0,0.0007925]
[1644028849774,0.379734,41417.0,41412.0,0.0184845]
[1644028849976,0.06444945,41414.0,41412.0,0.0184845]
[1644028850626,0.331234,41413.0,41407.0,0.01885587]
[1644028850827,0.06444945,41414.0,41407.0,0.01885587]
[1644028851024,0.06444945,41414.0,41407.0,0.07922387]
[1644028851424,0.18385674,41412.0,41407.0,0.07922387]
[1644028851626,0.43401979,41412.0,41407.0,0.07922387]
[1644028852425,0.25016305,41412.0,41411.0,0.013]
[1644028853431,0.39994735,41412.0,41411.0,0.013]
[1644028853828,0.47051551,41412.0,41411.0,0.013]
[1644028854227,0.47051551,41412.0,41409.0,0.00083983]
[1644028854664,0.32073121,41412.0,41409.0,0.00083983]
[1644028855062,0.32073121,41412.0,41405.0,0.06036417]
[1644028855262,0.32073121,41412.0,41408.0,0.00083984]
[1644028855463,0.32073121,41412.0,41409.0,0.060365]
[1644028856362,0.32073121,41412.0,41408.0,0.00083984]
[1644028856763,0.32073121,41412.0,41408.0,0.05620784]
[1644028856962,0.25016305,41412.0,41408.0,0.05620784]
[1644028857164,0.04884764,41417.0,41408.0,0.05620784]
[1644028858219,0.07518204,41412.0,41411.0,0.17869034]
[1644028859424,0.19031456,41413.0,41411.0,0.17869034]
[1644028860118,0.00083974,41414.0,41411.0,0.17869034]
[1644028861020,0.00034764,41419.0,41411.0,0.17869034]
[1644028861224,0.00034764,41418.0,41412.0,0.28664634]
[1644028861421,0.00083973,41415.0,41411.0,0.17869034]
[1644028861621,0.00083973,41415.0,41413.0,0.05]
[1644028862158,0.00034764,41418.0,41413.0,0.05]
[1644028862360,0.21082878,41419.0,41413.0,0.110354]
[1644028862661,0.00083971,41416.0,41413.0,0.110354]
[1644028863061,0.00083971,41416.0,41413.0,0.060354]
[1644028863461,0.00034764,41418.0,41413.0,0.060354]
[1644028863664,0.00083971,41417.0,41413.0,0.060354]
[1644028863866,0.00083971,41417.0,41413.0,0.110354]
[1644028864063,0.00083971,41417.0,41413.0,0.060354]
[1644028864664,0.00034764,41418.0,41413.0,0.060354]
[1644028864865,0.0008397,41417.0,41413.0,0.060354]
[1644028865063,0.0008397,41417.0,41416.0,0.015]
[1644028865925,0.21082878,41419.0,41416.0,0.015]
[1644028865926,0.00034764,41419.0,41416.0,0.015]
[1644028866125,0.00083968,41419.0,41416.0,0.015]
[1644028866326,0.00083968,41419.0,41415.0,0.060357]
[1644028866531,0.00118732,41419.0,41415.0,0.060357]
[1644028866726,0.00083968,41419.0,41415.0,0.060357]
[1644028867129,0.00034764,41419.0,41415.0,0.060357]
[1644028867327,0.00083968,41419.0,41415.0,0.060357]
[1644028867528,0.00118732,41419.0,41415.0,0.060357]
[1644028868329,0.00034764,41419.0,41415.0,0.060357]
[1644028868528,0.00083968,41419.0,41415.0,0.060357]
[1644028869369,0.00034764,41421.0,41415.0,0.060357]
[1644028869563,0.17742008,41422.0,41415.0,0.060357]
[1644028869763,0.00083968,41419.0,41415.0,0.060357]
[1644028870664,0.00034764,41421.0,41415.0,0.060357]
[1644028870865,0.00083968,41419.0,41415.0,0.060357]
[1644028871770,0.00034764,41421.0,41415.0,0.060357]
[1644028872065,0.00083968,41419.0,41415.0,0.060357]
[1644028872267,0.00083968,41419.0,41412.0,0.120707]
[1644028873212,0.00083969,41418.0,41412.0,0.120707]
[1644028873912,0.00118733,41418.0,41412.0,0.120707]
[1644028874112,0.00083969,41418.0,41412.0,0.120707]
[1644028874317,0.00034764,41420.0,41412.0,0.120707]
[1644028874515,0.0008397,41417.0,41412.0,0.120707]
[1644028875413,0.17707244,41422.0,41412.0,0.120707]
[1644028875414,0.00034764,41419.0,41412.0,0.120707]
[1644028875714,0.00083971,41417.0,41412.0,0.120707]
[1644028876313,0.00083971,41417.0,41415.0,0.018]
[1644028876715,0.00034764,41421.0,41415.0,0.018]
[1644028876986,0.00083969,41418.0,41415.0,0.018]
[1644028877477,0.331234,41417.0,41415.0,0.018]
[1644028878879,0.331234,41417.0,41411.0,0.19733769]
[1644028879078,0.00034764,41419.0,41411.0,0.19733769]
[1644028879283,0.00034764,41420.0,41413.0,0.05]
[1644028879484,0.00083969,41418.0,41413.0,0.05]
[1644028879679,0.00083969,41418.0,41414.0,0.060358]
[1644028880282,0.00034764,41419.0,41418.0,0.00011331]
[1644028880615,0.00083969,41418.0,41413.0,0.05]
[1644028881217,0.00083969,41418.0,41412.0,0.01829751]
[1644028881415,0.00034764,41419.0,41414.0,0.060355]
[1644028881616,0.00034764,41420.0,41414.0,0.060355]
[1644028881816,0.00083969,41418.0,41414.0,0.060355]
[1644028882717,0.00034764,41421.0,41414.0,0.060355]
[1644028882919,0.00083969,41418.0,41414.0,0.060355]
[1644028883817,0.00034764,41421.0,41414.0,0.060355]
[1644028884019,0.00034764,41422.0,41414.0,0.110355]
[1644028884219,0.00083969,41418.0,41414.0,0.110355]
[1644028884864,0.00083969,41418.0,41414.0,0.060355]
[1644028885061,0.00034764,41419.0,41414.0,0.060355]
[1644028885262,0.00083969,41418.0,41414.0,0.060355]
[1644028885464,0.0007784,41418.0,41414.0,0.060355]
[1644028886263,0.00034764,41422.0,41414.0,0.060355]
[1644028886463,0.060357,41422.0,41414.0,0.060355]
[1644028886663,0.06070464,41422.0,41414.0,0.060355]
[1644028886863,0.06070464,41422.0,41412.0,0.08193661]
[1644028887064,0.16711583,41421.0,41412.0,0.08193661]
[1644028887267,0.16746347,41421.0,41412.0,0.08193661]
[1644028887463,0.06036,41420.0,41412.0,0.08193661]
[1644028887864,0.06070764,41420.0,41412.0,0.08193661]
[1644028888714,0.00034764,41420.0,41412.0,0.08193661]
[1644028888917,0.00083969,41418.0,41412.0,0.06036]
[1644028889522,0.00083969,41418.0,41414.0,0.060355]
[1644028889925,0.00034764,41419.0,41414.0,0.060355]
[1644028890116,0.32697411,41423.0,41414.0,0.060355]
[1644028890117,0.00083969,41418.0,41414.0,0.060355]
[1644028890517,0.00083969,41418.0,41411.0,0.19795943]
[1644028890720,0.00083969,41418.0,41414.0,0.01887324]
[1644028891116,0.00034764,41419.0,41414.0,0.01887324]
[1644028891318,0.00083969,41418.0,41414.0,0.07923024]
[1644028892369,0.00034764,41421.0,41414.0,0.07923024]
[1644028892567,0.00083969,41418.0,41414.0,0.07923024]
[1644028892963,0.00083969,41418.0,41414.0,0.060357]
[1644028893164,0.00083969,41418.0,41416.0,0.018]
[1644028893565,0.00034764,41420.0,41416.0,0.018]
[1644028893764,0.00081762,41419.0,41416.0,0.018]
[1644028894767,0.331234,41421.0,41416.0,0.018]
[1644028895070,0.00081761,41420.0,41416.0,0.018]
[1644028895266,0.00081761,41420.0,41417.0,0.060354]
[1644028895465,0.331234,41419.0,41417.0,0.060354]
[1644028895723,0.00081761,41420.0,41417.0,0.060354]
[1644028895922,0.00034764,41420.0,41417.0,0.060354]
[1644028896123,0.00081761,41420.0,41413.0,0.01976475]
[1644028896523,0.20875712,41419.0,41413.0,0.01976475]
[1644028896724,0.20875712,41419.0,41415.0,0.02027299]
[1644028897424,0.00079383,41419.0,41415.0,0.02027299]
[1644028897825,0.331234,41417.0,41415.0,0.02027299]
[1644028898024,0.18188564,41419.0,41415.0,0.02027299]
[1644028898025,0.60509961,41416.0,41415.0,0.02027299]
[1644028898225,0.78867661,41416.0,41415.0,0.02027299]
[1644028898724,0.99014159,41416.0,41415.0,0.02027299]
[1644028898926,0.80656459,41416.0,41411.0,0.17869034]
[1644028899127,0.47533059,41416.0,41411.0,0.23905234]
[1644028899765,0.20225885,41416.0,41411.0,0.23905234]